fUSD/lending_fUSD_20241209
["ID","MTS","AMOUNT","RATE_DAILY","PERIOD"]
[344725314,1733745049265,-800.0,0.0001501,2]
[344725315,1733745049274,-800.0,0.0001501,2]
[344725316,1733745049284,-800.0,0.0001501,2]
[344725317,1733745049295,-818.11238888,0.0001501,2]
[344725318,1733745049305,-169.48711978,0.0001501,2]
[344725319,1733745049315,-800.0,0.00015014,2]
[344725320,1733745049324,-800.0,0.00015014,2]
[344725321,1733745049334,-800.0,0.00015014,2]
[344725322,1733745049343,-800.0,0.00015014,2]
[344725323,1733745049353,-800.0,0.00015014,2]
[344725324,1733745049362,-800.0,0.00015014,2]
[344725325,1733745049372,-800.0,0.00015014,2]
[344725326,1733745049382,-800.0,0.00015014,2]
[344725327,1733745049392,-800.0,0.00015014,2]
[344725328,1733745049401,-404.655597,0.0001505,2]
[344725329,1733745049410,-168.6065,0.0001505,2]
[344725330,1733745049420,-171.0,0.00015053,30]
[344725331,1733745049430,-300.0,0.00015068,2]
[344725332,1733745049440,-296.18522242,0.000151,2]
[344725333,1733745049449,-1056.0,0.00015194,2]
[344725334,1733745049458,-404.655597,0.00015234,2]
[344725335,1733745049468,-1221.64668587,0.00015235,2]
[344725336,1733745049477,-1500.0,0.00015248,2]
[344725337,1733745049486,-1500.0,0.00015248,2]
[344725338,1733745049495,-1500.0,0.00015248,2]
[344725339,1733745049505,-1500.0,0.00015248,2]
[344725340,1733745049514,-1595.42231532,0.00015248,2]
[344725341,1733745049523,-1500.0,0.00015248,2]
[344725342,1733745049532,-800.0,0.00015264,2]
[344725343,1733745049544,-800.0,0.00015264,2]
[344725344,1733745049554,-800.0,0.00015264,2]
[344725345,1733745049563,-800.0,0.00015264,2]
[344725346,1733745049572,-800.0,0.00015264,2]
[344725347,1733745049582,-800.0,0.00015264,2]
[344725348,1733745049591,-151.0,0.00015264,2]
[344725349,1733745049600,-1517.64,0.000153,2]
[344725350,1733745049609,-15896.58166262,0.000154,2]
[344725351,1733745049619,-483.4474724,0.000154,2]
[344725352,1733745049628,-151.0,0.000154,2]
[344725353,1733745049637,-151.0,0.000154,2]
[344725354,1733745049646,-288.362821,0.000154,2]
[344725355,1733745049655,-288.362821,0.000154,2]
[344725356,1733745049664,-160.931551,0.000154,2]
[344725357,1733745049674,-160.931551,0.000154,2]
[344725358,1733745049683,-485.648918,0.000154,2]
[344725359,1733745049692,-485.648918,0.000154,2]
[344725360,1733745049701,-151.0,0.000154,2]
[344725361,1733745049710,-404.655597,0.00015417,2]
[344725362,1733745049719,-168.6065,0.00015417,2]
[344725363,1733745049728,-3413.0,0.000155,2]
[344725364,1733745049737,-151.0,0.000155,2]
[344725365,1733745049747,-300.0,0.0001553,2]
[344725366,1733745049756,-1000.0,0.00015561,2]
[344725367,1733745049767,-150.0,0.00015573,2]
[344725368,1733745049775,-1090.04,0.00015644,2]
[344725369,1733745049786,-435.34,0.00015664,2]
[344725370,1733745049795,-435.34,0.00015664,2]
[344725371,1733745049804,-435.34,0.00015664,2]
[344725372,1733745049813,-435.34,0.00015664,2]
[344725373,1733745049823,-435.34,0.00015664,2]
[344725374,1733745049833,-435.34,0.00015664,2]
[344725375,1733745049846,-435.34,0.00015664,2]
[344725376,1733745049856,-435.34,0.00015664,2]
[344725377,1733745049865,-435.17,0.00015664,2]
[344725378,1733745049875,-435.34,0.00015664,2]
[344725379,1733745049884,-152.0,0.00015666,3]
[344725380,1733745049894,-171.0,0.00015684,30]
[344725381,1733745049903,-150.0,0.00015722,2]
[344725382,1733745049912,-150.0,0.00015783,2]
[344725383,1733745049922,-162.23802384,0.000158,2]
[344725384,1733745049931,-219.405489,0.00015806,2]
[344725385,1733745049941,-219.405489,0.00015806,2]
[344725386,1733745049950,-3172.87830023,0.00015806,2]
[344725387,1733745049959,-151.0,0.0001589,2]
[344725388,1733745049968,-151.0,0.0001589,2]
[344725389,1733745049978,-1056.0,0.00015953,2]
[344725390,1733745049987,-908.05242055,0.00016,3]
[344725391,1733745049997,-3363.7784991,0.00016,2]
[344725392,1733745050007,-288.573388,0.00016,2]
[344725393,1733745050016,-288.573388,0.00016,2]
[344725394,1733745050025,-2000.0,0.00016,2]
[344725395,1733745050035,-150.0,0.00016046,2]
[344725396,1733745050046,-558.69,0.00016075,2]
[344725397,1733745050058,-300.0,0.000161,2]
[344725398,1733745050067,-150.0,0.00016101,2]
[344725399,1733745050076,-150.0,0.00016104,2]
[344725400,1733745050085,-151.0,0.00016116,2]
[344725401,1733745050094,-151.0,0.00016116,2]
[344725402,1733745050103,-2453.246892,0.00016116,2]
[344725403,1733745050112,-2453.246892,0.00016116,2]
[344725404,1733745050121,-151.0,0.00016116,2]
[344725405,1733745050130,-9999.99,0.00016116,2]
[344725406,1733745050139,-768.51,0.00016139,2]
[344725407,1733745050149,-152.0,0.00016149,4]
[344725408,1733745050158,-150.0,0.0001618,2]
[344725409,1733745050168,-150.0,0.00016226,2]
[344725410,1733745050177,-154.737417,0.00016276,2]
[344725411,1733745050187,-151.0,0.00016276,2]
[344725412,1733745050196,-573.492229,0.00016276,2]
[344725413,1733745050207,-573.492229,0.00016276,2]
[344725414,1733745050217,-151.0,0.00016276,2]
[344725415,1733745050227,-151.0,0.00016276,2]
[344725416,1733745050237,-594.010098,0.00016276,2]
[344725417,1733745050246,-594.010098,0.00016276,2]
[344725418,1733745050255,-500.0,0.00016276,2]
[344725419,1733745050265,-2000.0,0.00016276,2]
[344725420,1733745050274,-3500.0,0.00016276,2]
[344725421,1733745050284,-1613.0,0.00016307,2]
[344725422,1733745050296,-171.0,0.00016316,30]
[344725423,1733745050305,-200.0,0.0001634,2]
[344725424,1733745050315,-200.0,0.0001643,2]
[344725425,1733745050324,-850.91,0.00016438,2]
[344725426,1733745050334,-850.91,0.00016438,2]
[344725427,1733745050344,-850.91,0.00016438,2]
[344725428,1733745050354,-850.91,0.00016438,2]
[344725429,1733745050364,-850.91,0.00016438,2]
[344725430,1733745050373,-850.91,0.00016438,2]
[344725431,1733745050383,-850.91,0.00016438,2]
[344725432,1733745050393,-850.91,0.00016438,2]
[344725433,1733745050403,-850.91,0.00016438,2]
[344725434,1733745050413,-850.91,0.00016438,2]
[344725435,1733745050422,-850.91,0.00016438,2]
[344725436,1733745050432,-850.91,0.00016438,2]
[344725437,1733745050442,-850.91,0.00016438,2]
[344725438,1733745050452,-850.91,0.00016438,2]
[344725439,1733745050462,-850.91,0.00016438,2]
[344725440,1733745050471,-850.91,0.00016438,2]
[344725441,1733745050481,-850.91,0.00016438,2]
[344725442,1733745050490,-850.91,0.00016438,2]
[344725443,1733745050500,-850.91,0.00016438,2]
[344725444,1733745050509,-850.91,0.00016438,2]
[344725445,1733745050519,-850.91,0.00016438,2]
[344725446,1733745050529,-850.91,0.00016438,2]
[344725447,1733745050540,-850.91,0.00016438,2]
[344725448,1733745050549,-851.10826899,0.00016438,2]
[344725449,1733745050559,-2253.05,0.00016438,2]
[344725450,1733745050568,-2253.05,0.00016438,2]
[344725451,1733745050577,-2253.05,0.00016438,2]
[344725452,1733745050587,-2253.05,0.00016438,2]
[344725453,1733745050597,-2253.05,0.00016438,2]
[344725454,1733745050606,-2253.05,0.00016438,2]
[344725455,1733745050616,-2253.05,0.00016438,2]
[344725456,1733745050625,-2253.05,0.00016438,2]
[344725457,1733745050634,-2253.05,0.00016438,2]
[344725458,1733745050644,-2253.05,0.00016438,2]
[344725459,1733745050654,-2253.05,0.00016438,2]
[344725460,1733745050663,-2253.05,0.00016438,2]
[344725461,1733745050673,-2253.05,0.00016438,2]
[344725462,1733745050682,-2253.05,0.00016438,2]
[344725463,1733745050691,-2253.05,0.00016438,2]
[344725464,1733745050701,-2253.05,0.00016438,2]
[344725465,1733745050711,-2253.05,0.00016438,2]
[344725466,1733745050720,-2253.05,0.00016438,2]
[344725467,1733745050729,-2253.05,0.00016438,2]
[344725468,1733745050739,-2253.05,0.00016438,2]
[344725469,1733745050748,-2253.05,0.00016438,2]
[344725470,1733745050758,-2253.05,0.00016438,2]
[344725471,1733745050767,-2253.05,0.00016438,2]
[344725472,1733745050777,-2253.05702212,0.00016438,2]
[344725473,1733745050790,-401.62,0.00016438,2]
[344725474,1733745050799,-401.62,0.00016438,2]
[344725475,1733745050809,-401.62,0.00016438,2]
[344725476,1733745050819,-401.62,0.00016438,2]
[344725477,1733745050829,-401.62,0.00016438,2]
[344725478,1733745050841,-401.62,0.00016438,2]
[344725479,1733745050850,-401.62,0.00016438,2]
[344725480,1733745050860,-401.62,0.00016438,2]
[344725481,1733745050870,-401.62,0.00016438,2]
[344725482,1733745050882,-401.62,0.00016438,2]
[344725483,1733745050891,-401.62,0.00016438,2]
[344725484,1733745050901,-401.62,0.00016438,2]
[344725485,1733745050911,-401.62,0.00016438,2]
[344725486,1733745050921,-401.62,0.00016438,2]
[344725487,1733745050931,-401.62,0.00016438,2]
[344725488,1733745050941,-401.62,0.00016438,2]
[344725489,1733745050951,-401.62,0.00016438,2]
[344725490,1733745050962,-401.62,0.00016438,2]
[344725491,1733745050972,-401.62,0.00016438,2]
[344725492,1733745050981,-401.62,0.00016438,2]
[344725493,1733745050992,-401.62,0.00016438,2]
[344725494,1733745051002,-401.62,0.00016438,2]
[344725495,1733745051011,-401.62,0.00016438,2]
[344725496,1733745051021,-401.8111877,0.00016438,2]
[344725497,1733745051031,-599.4,0.00016438,2]
[344725498,1733745051042,-599.4,0.00016438,2]
[344725499,1733745051052,-599.4,0.00016438,2]
[344725500,1733745051061,-599.4,0.00016438,2]
[344725501,1733745051071,-599.4,0.00016438,2]
[344725502,1733745051081,-599.4,0.00016438,2]
[344725503,1733745051091,-599.4,0.00016438,2]
[344725504,1733745051101,-599.4,0.00016438,2]
[344725505,1733745051110,-1000.0,0.00016438,2]
[344725506,1733745051120,-1000.0,0.00016438,2]
[344725507,1733745051130,-1000.0,0.00016438,2]
[344725508,1733745051139,-1000.0,0.00016438,2]
[344725509,1733745051149,-1000.0,0.00016438,2]
[344725510,1733745051158,-1000.0,0.00016438,2]
[344725511,1733745051168,-1000.0,0.00016438,2]
[344725512,1733745051177,-1000.0,0.00016438,2]
[344725513,1733745051187,-1000.0,0.00016438,2]
[344725514,1733745051197,-1000.0,0.00016438,2]
[344725515,1733745051206,-1000.0,0.00016438,2]
[344725516,1733745051216,-1000.0,0.00016438,2]
[344725517,1733745051226,-1000.0,0.00016438,2]
[344725518,1733745051236,-1000.0,0.00016438,2]
[344725519,1733745051246,-1000.0,0.00016438,2]
[344725520,1733745051255,-1000.0,0.00016438,2]
[344725521,1733745051265,-1000.0,0.00016438,2]
[344725522,1733745051274,-1000.0,0.00016438,2]
[344725523,1733745051286,-1000.0,0.00016438,2]
[344725524,1733745051296,-1000.0,0.00016438,2]
[344725525,1733745051306,-1000.0,0.00016438,2]
[344725526,1733745051315,-1000.0,0.00016438,2]
[344725527,1733745051324,-1000.0,0.00016438,2]
[344725528,1733745051334,-1000.0,0.00016438,2]
[344725529,1733745051344,-1000.0,0.00016438,2]
[344725530,1733745051353,-1000.0,0.00016438,2]
[344725531,1733745051363,-1000.0,0.00016438,2]
[344725532,1733745051373,-1000.0,0.00016438,2]
[344725533,1733745051383,-1000.0,0.00016438,2]
[344725534,1733745051393,-1000.0,0.00016438,2]
[344725535,1733745051403,-164.0,0.00016438,2]
[344725536,1733745051412,-300.0,0.00016438,2]
[344725537,1733745051423,-300.28,0.00016438,2]
[344725538,1733745051433,-150.0,0.00016438,2]
[344725539,1733745051443,-5000.0,0.00016438,2]
[344725540,1733745051453,-500.0,0.00016438,2]
[344725541,1733745051463,-150.0,0.00016452,2]
[344725542,1733745051473,-435.34,0.00016486,2]
[344725543,1733745051482,-435.34,0.00016486,2]
[344725544,1733745051492,-435.34,0.00016486,2]
[344725545,1733745051502,-435.34,0.000165,2]
[344725546,1733745051511,-869.92,0.000165,2]
[344725547,1733745051521,-435.34,0.000165,2]
[344725548,1733745051530,-435.34,0.000165,2]
[344725549,1733745051543,-435.34,0.000165,2]
[344725550,1733745051554,-435.34,0.000165,2]
[344725551,1733745051563,-435.34,0.000165,2]
[344725552,1733745051573,-870.68,0.000165,2]
[344725553,1733745051583,-865.52,0.000165,2]
[344725554,1733745051592,-435.34,0.000165,2]
[344725555,1733745051602,-434.83,0.000165,2]
[344725556,1733745051611,-441.31,0.00016503,2]
[344725557,1733745051621,-150.0,0.00016542,2]
[344725558,1733745051631,-2000.0,0.00016546,2]
[344725559,1733745051641,-2068.44032938,0.00016546,2]
[344725560,1733745051650,-1202.84764534,0.00016546,2]
[344725561,1733745051660,-2025.99732239,0.00016546,2]
[344725562,1733745051670,-894.575801,0.00016546,2]
[344725563,1733745051679,-150.0,0.00016549,2]
[344725564,1733745051689,-150.0,0.00016598,2]
[344725565,1733745051699,-150.0,0.00016603,2]
[344725566,1733745051708,-150.0,0.00016616,2]
[344725567,1733745051718,-152.0,0.00016632,5]
[344725568,1733745051728,-150.0,0.00016635,2]
[344725569,1733745051738,-150.0,0.00016637,2]
[344725570,1733745051747,-800.0,0.00016658,2]
[344725571,1733745051757,-1125.55,0.00016658,30]
[344725572,1733745051768,-150.0,0.00016662,2]
[344725573,1733745051778,-300.0,0.0001667,2]
[344725574,1733745051789,-150.0,0.00016693,2]
[344725575,1733745051799,-150.0,0.00016694,2]
[344725576,1733745051809,-230.0,0.000167,2]
[344725577,1733745051823,-153.49,0.00016712,2]
[344725578,1733745051836,-150.0,0.00016736,2]
[344725579,1733745051846,-1056.0,0.00016751,2]
[344725580,1733745051855,-150.0,0.00016866,2]
[344725581,1733745051865,-150.0,0.00016873,2]
[344725582,1733745051876,-406.01,0.00016895,2]
[344725583,1733745051886,-364.0,0.000169,2]
[344725584,1733745051896,-150.0,0.00016909,2]
[344725585,1733745051905,-150.0,0.00016934,2]
[344725586,1733745051916,-171.0,0.00016947,30]
[344725587,1733745051926,-150.0,0.00016984,2]
[344725588,1733745051935,-150.0,0.00016996,2]
[344725589,1733745051945,-5000.73498539,0.00017,2]
[344725590,1733745051956,-550.0,0.00017,2]
[344725591,1733745051965,-1893.0,0.00017,2]
[344725592,1733745051975,-152.0,0.00017019,3]
[344725593,1733745051984,-150.0,0.00017075,2]
[344725594,1733745051994,-150.0,0.00017082,2]
[344725595,1733745052004,-152.0,0.00017115,6]
[344725596,1733745052014,-250.0,0.00017123,2]
[344725597,1733745052023,-150.0,0.00017134,2]
[344725598,1733745052033,-150.0,0.00017141,2]
[344725599,1733745052044,-150.0,0.0001717,2]
[344725600,1733745052053,-150.0,0.00017177,2]
[344725601,1733745052063,-150.0,0.00017204,2]
[344725602,1733745052073,-150.0,0.00017204,2]
[344725603,1733745052082,-150.0,0.00017204,2]
[344725604,1733745052092,-150.0,0.00017235,2]
[344725605,1733745052102,-991.43,0.00017235,2]
[344725606,1733745052111,-300.0,0.00017235,2]
[344725607,1733745052121,-300.0,0.0001724,2]
[344725608,1733745052130,-53349.21817192,0.00017246,2]
[344725609,1733745052140,-150.0,0.00017305,2]
[344725610,1733745052149,-150.0,0.00017315,2]
[344725611,1733745052159,-435.34,0.00017321,2]
[344725612,1733745052168,-150.0,0.00017361,2]
[344725613,1733745052177,-150.18416444,0.00017385,2]
[344725614,1733745052187,-150.0,0.000174,2]
[344725615,1733745052197,-150.0,0.00017447,2]
[344725616,1733745052207,-150.0,0.00017458,2]
[344725617,1733745052217,-150.0,0.00017471,2]
[344725618,1733745052227,-150.0,0.00017483,2]
[344725619,1733745052236,-150.0,0.00017519,2]
[344725620,1733745052246,-201.0,0.0001752,2]
[344725621,1733745052256,-200.0,0.0001753,2]
[344725622,1733745052265,-150.0,0.00017542,2]
[344725623,1733745052275,-150.0,0.00017575,2]
[344725624,1733745052287,-171.0,0.00017579,30]
[344725625,1733745052297,-1056.0,0.00017588,2]
[344725626,1733745052306,-152.0,0.00017598,7]
[344725627,1733745052316,-150.0,0.00017612,2]
[344725628,1733745052326,-150.0,0.00017627,2]
[344725629,1733745052336,-150.0,0.00017639,2]
[344725630,1733745052345,-500.0,0.00017646,2]
[344725631,1733745052355,-2000.0,0.00017646,2]
[344725632,1733745052365,-3500.0,0.00017646,2]
[344725633,1733745052375,-150.0,0.00017662,2]
[344725634,1733745052384,-241352.0,0.00017693,2]
[344725635,1733745052394,-150.0,0.00017733,2]
[344725636,1733745052600,-1500.0,0.00017736,2]
[344725637,1733745052609,-150.0,0.00017748,2]
[344725638,1733745052619,-150.0,0.0001775,2]
[344725639,1733745052628,-150.0,0.00017768,2]
[344725640,1733745052637,-150.0,0.00017771,2]
[344725641,1733745052647,-150.0,0.00017775,2]
[344725642,1733745052656,-150.0,0.00017778,2]
[344725643,1733745052666,-2580.0,0.000178,13]
[344725644,1733745052675,-295.42,0.000178,8]
[344725645,1733745052684,-350.0,0.00017808,2]
[344725646,1733745052694,-150.0,0.00017809,2]
[344725647,1733745052704,-300.0,0.0001781,2]
[344725648,1733745052713,-150.0,0.00017857,2]
[344725649,1733745052723,-150.0,0.00017875,2]
[344725650,1733745052732,-1500.0,0.00017885,2]
[344725651,1733745052742,-2000.0,0.000179,2]
[344725652,1733745052751,-185.46,0.000179,2]
[344725653,1733745052760,-185.46,0.000179,2]
[344725654,1733745052770,-185.46,0.000179,2]
[344725655,1733745052779,-185.46,0.000179,2]
[344725656,1733745052790,-1090.04,0.00017908,2]
[344725657,1733745052800,-1500.0,0.00017918,2]
[344725658,1733745052810,-1500.0,0.00017918,2]
[344725659,1733745052819,-1552.0,0.00017935,2]
[344725660,1733745052828,-1100.0,0.0001797,2]
[344725661,1733745052841,-150.0,0.00017981,2]
[344725662,1733745052850,-1500.0,0.00017988,2]
[344725663,1733745052860,-201.0,0.0001799,2]
[344725664,1733745052869,-1056.43,0.00018,2]
[344725665,1733745052879,-200.0,0.00018,3]
[344725666,1733745052888,-80612.0,0.00018,2]
[344725667,1733745052897,-3195.7445349,0.00018,2]
[344725668,1733745052907,-1130.96057634,0.00018,2]
[344725669,1733745052919,-2444.0,0.00018,2]
[344725670,1733745052928,-5611.79493864,0.00018,2]
[344725671,1733745052937,-1029.42208202,0.00018,2]
[344725672,1733745052946,-1332.0,0.00018,2]
[344725673,1733745052958,-4085.69792227,0.00018,2]
[344725674,1733745052968,-21588.71356245,0.00018,2]
[344725675,1733745052977,-45848.824327,0.00018,2]
[344725676,1733745052987,-151.0,0.00018,2]
[344725677,1733745052996,-256.089104,0.00018,2]
[344725678,1733745053007,-256.089104,0.00018,2]
[344725679,1733745053017,-151.0,0.00018,2]
[344725680,1733745053027,-166.0,0.00018,30]
[344725681,1733745053038,-2000.0,0.00018,2]
[344725682,1733745053047,-14018.0,0.00018,2]
[344725683,1733745053057,-6544.53000941,0.00018,2]
[344725684,1733745053067,-150.0,0.00018002,2]
[344725685,1733745053076,-441.31,0.00018004,2]
[344725686,1733745053086,-154.737417,0.00018018,2]
[344725687,1733745053095,-1500.0,0.00018018,2]
[344725688,1733745053104,-150.0,0.00018019,2]
[344725689,1733745053113,-150.0,0.0001802,2]
[344725690,1733745053123,-150.0,0.00018055,2]
[344725691,1733745053133,-364.31,0.00018057,2]
[344725692,1733745053142,-364.31,0.00018057,2]
[344725693,1733745053152,-364.31,0.00018057,2]
[344725694,1733745053161,-150.0,0.00018057,2]
[344725695,1733745053170,-364.31,0.00018057,2]
[344725696,1733745053179,-150.0,0.00018057,2]
[344725697,1733745053188,-150.0,0.00018057,2]
[344725698,1733745053198,-364.31,0.00018057,2]
[344725699,1733745053208,-150.0,0.00018057,2]
[344725700,1733745053217,-376.1,0.00018057,2]
[344725701,1733745053227,-152.0,0.00018081,8]
[344725702,1733745053236,-2500.0,0.00018082,2]
[344725703,1733745053245,-1500.0,0.00018091,2]
[344725704,1733745053255,-1691.71827467,0.000181,2]
[344725705,1733745053264,-1500.0,0.00018107,2]
[344725706,1733745053274,-218.0,0.0001812,2]
[344725707,1733745053283,-1500.0,0.00018123,2]
[344725708,1733745053297,-150.0,0.00018139,2]
[344725709,1733745053307,-1500.0,0.00018186,2]
[344725710,1733745053317,-171.0,0.00018211,30]
[344725711,1733745053326,-150.0,0.00018212,2]
[344725712,1733745053335,-150.0,0.00018223,2]
[344725713,1733745053345,-150.0,0.00018244,2]
[344725714,1733745053354,-1500.0,0.00018245,2]
[344725715,1733745053363,-150.0,0.00018246,2]
[344725716,1733745053373,-150.0,0.00018255,2]
[344725717,1733745053383,-439.27073134,0.00018256,2]
[344725718,1733745053393,-150.0,0.00018265,2]
[344725719,1733745053402,-277575.03309448,0.00018299,2]
[344725720,1733745053411,-42902.35504215,0.00018299,2]
[344725721,1733745053420,-288.573388,0.00018299,2]
[344725722,1733745053430,-288.573388,0.00018299,2]
[344725723,1733745053439,-151.0,0.00018299,2]
[344725724,1733745053449,-151.0,0.00018299,2]
[344725725,1733745053458,-242.539554,0.00018299,2]
[344725726,1733745053468,-151.0,0.00018299,2]
[344725727,1733745053478,-219.405489,0.00018299,2]
[344725728,1733745053487,-219.405489,0.00018299,2]
[344725729,1733745053496,-151.0,0.00018299,2]
[344725730,1733745053505,-288.362821,0.00018299,2]
[344725731,1733745053515,-288.362821,0.00018299,2]
[344725732,1733745053524,-160.931551,0.00018299,2]
[344725733,1733745053533,-160.931551,0.00018299,2]
[344725734,1733745053544,-151.0,0.00018299,2]
[344725735,1733745053554,-485.648918,0.00018299,2]
[344725736,1733745053563,-485.648918,0.00018299,2]
[344725737,1733745053572,-151.0,0.00018299,2]
[344725738,1733745053581,-150.0,0.00018311,2]
[344725739,1733745053590,-150.0,0.00018313,2]
[344725740,1733745053600,-150.0,0.00018347,2]
[344725741,1733745053609,-1500.0,0.00018348,2]
[344725742,1733745053619,-151.0,0.00018356,2]
[344725743,1733745053629,-2453.246892,0.00018356,2]
[344725744,1733745053639,-2453.246892,0.00018356,2]
[344725745,1733745053647,-151.0,0.00018356,2]
[344725746,1733745053657,-151.567109,0.00018356,2]
[344725747,1733745053666,-573.492229,0.00018356,2]
[344725748,1733745053675,-573.492229,0.00018356,2]
[344725749,1733745053685,-151.0,0.00018356,2]
[344725750,1733745053694,-151.0,0.00018356,2]
[344725751,1733745053704,-594.010098,0.00018356,2]
[344725752,1733745053713,-594.010098,0.00018356,2]
[344725753,1733745053723,-82008.36,0.00018356,2]
[344725754,1733745053732,-150.0,0.00018359,2]
[344725755,1733745053741,-150.0,0.00018375,2]
[344725756,1733745053750,-1500.0,0.00018379,2]
[344725757,1733745053759,-150.0,0.00018379,2]
[344725758,1733745053769,-300.0,0.0001838,2]
[344725759,1733745053779,-150.0,0.00018382,2]
[344725760,1733745053789,-1500.0,0.00018407,2]
[344725761,1733745053799,-1500.0,0.00018409,2]
[344725762,1733745053808,-1500.0,0.00018412,2]
[344725763,1733745053818,-150.0,0.00018413,2]
[344725764,1733745053827,-150.0,0.00018419,2]
[344725765,1733745053839,-150.0,0.00018429,2]
[344725766,1733745053848,-150.0,0.00018432,2]
[344725767,1733745053857,-150.0,0.00018445,2]
[344725768,1733745053867,-1500.0,0.00018448,2]
[344725769,1733745053875,-150.0,0.00018455,2]
[344725770,1733745053886,-150.0,0.00018455,2]
[344725771,1733745053895,-19895.0,0.00018463,7]
[344725772,1733745053904,-150.0,0.00018463,2]
[344725773,1733745053915,-1056.0,0.00018468,2]
[344725774,1733745053925,-201.0,0.0001847,2]
[344725775,1733745053934,-204.0,0.0001847,2]
[344725776,1733745053943,-150.0,0.00018471,2]
[344725777,1733745053954,-150.0,0.00018478,2]
[344725778,1733745053963,-150.0,0.00018479,2]
[344725779,1733745053972,-150.0,0.00018482,2]
[344725780,1733745053982,-150.0,0.00018489,2]
[344725781,1733745053991,-356.90690016,0.00018493,2]
[344725782,1733745054001,-126453.01289442,0.000185,2]
[344725783,1733745054011,-150.0,0.000185,2]
[344725784,1733745054020,-1138.8,0.000185,2]
[344725785,1733745054029,-7967.89982105,0.000185,2]
[344725786,1733745054039,-150.0,0.00018515,2]
[344725787,1733745054049,-150.0,0.00018521,2]
[344725788,1733745054059,-150.0,0.00018529,2]
[344725789,1733745054068,-150.0,0.00018532,2]
[344725790,1733745054077,-150.0,0.00018532,2]
[344725791,1733745054087,-1500.0,0.00018532,2]
[344725792,1733745054096,-150.0,0.00018537,2]
[344725793,1733745054105,-1500.0,0.00018539,2]
[344725794,1733745054115,-1500.0,0.00018549,2]
[344725795,1733745054124,-152.0,0.00018564,9]
[344725796,1733745054133,-150.0,0.00018565,2]
[344725797,1733745054143,-150.0,0.00018567,2]
[344725798,1733745054153,-141091.10493032,0.0001857,2]
[344725799,1733745054162,-25309.681051,0.0001857,2]
[344725800,1733745054171,-150.0,0.0001857,2]
[344725801,1733745054181,-150.0,0.00018579,2]
[344725802,1733745054190,-1500.0,0.00018594,2]
[344725803,1733745054199,-1500.0,0.00018599,2]
[344725804,1733745054210,-150.0,0.000186,2]
[344725805,1733745054219,-150.0,0.00018602,2]
[344725806,1733745054229,-1500.0,0.00018622,2]
[344725807,1733745054238,-256.0,0.0001863,2]
[344725808,1733745054248,-150.0,0.0001866,2]
[344725809,1733745054257,-1500.0,0.00018666,2]
[344725810,1733745054267,-1500.0,0.00018678,2]
[344725811,1733745054276,-1500.0,0.00018681,2]
[344725812,1733745054286,-218.0,0.0001869,2]
[344725813,1733745054297,-202.3,0.000187,2]